fUSD/lending_fUSD_20240210
["ID","MTS","AMOUNT","RATE_DAILY","PERIOD"]
[313671013,1707565844910,-1064.23,0.00022548,2]
[313671014,1707565844921,-500.0,0.00022548,2]
[313671015,1707565844933,-2427.57,0.00022548,2]
[313671017,1707565844944,-500.0,0.00022548,2]
[313671019,1707565844955,-16186.07,0.00022548,2]
[313671021,1707565844966,-4168.27,0.00022548,2]
[313671022,1707565844977,-594.31,0.00022548,2]
[313671023,1707565844988,-981.58,0.00022548,2]
[313671024,1707565844998,-500.0,0.00022548,2]
[313671025,1707565845010,-569.6261814,0.00022548,2]
[313671026,1707565845020,-500.0,0.00022548,2]
[313671027,1707565845031,-500.0,0.00022548,2]
[313671028,1707565845042,-8335.16,0.00022548,2]
[313671029,1707565845053,-500.0,0.00022548,2]
[313671030,1707565845064,-500.0,0.00022548,2]
[313671031,1707565845075,-800.92,0.00022548,2]
[313671032,1707565845086,-1524.91,0.00022548,2]
[313671033,1707565845098,-500.0,0.00022548,2]
[313671034,1707565845108,-822.2,0.00022548,2]
[313671035,1707565845120,-500.0,0.00022548,2]
[313671036,1707565845130,-500.0,0.00022548,2]
[313671037,1707565845141,-500.0,0.00022548,2]
[313671038,1707565845153,-500.0,0.00022548,2]
[313671039,1707565845164,-5842.83,0.00022548,2]
[313671040,1707565845175,-2093.04,0.00022548,2]
[313671041,1707565845186,-500.0,0.00022548,2]
[313671042,1707565845197,-1746.54,0.00022548,2]
[313671043,1707565845208,-500.0,0.00022548,2]
[313671044,1707565845219,-500.0,0.00022548,2]
[313671045,1707565845230,-1254.11,0.00022548,2]
[313671046,1707565845240,-219.03,0.00022548,2]
[313671047,1707565845251,-836.97,0.00022548,2]
[313671048,1707565845261,-500.0,0.00022548,2]
[313671049,1707565845272,-361.52275,0.00022548,2]
[313671050,1707565845282,-500.0,0.00022548,2]
[313671051,1707565845293,-528.47,0.00022548,2]
[313671052,1707565845303,-500.0,0.00022548,2]
[313671053,1707565845314,-1470.02,0.00022548,2]
[313671054,1707565845324,-500.0,0.00022548,2]
[313671055,1707565845335,-3240.25,0.00022548,2]
[313671056,1707565845345,-1742.48,0.00022548,2]
[313671057,1707565845355,-587.26,0.00022548,2]
[313671058,1707565845366,-500.0,0.00022548,2]
[313671059,1707565845376,-593.3,0.00022548,2]
[313671060,1707565845387,-500.0,0.00022548,2]
[313671061,1707565845398,-1238.02,0.00022548,2]
[313671062,1707565845408,-1108.02,0.00022548,2]
[313671063,1707565845419,-500.0,0.00022548,2]
[313671064,1707565845430,-419.82810726,0.00022548,2]
[313671065,1707565845441,-500.0,0.00022548,2]
[313671066,1707565845453,-544.62,0.00022548,2]
[313671067,1707565845463,-1994.25,0.00022548,2]
[313671068,1707565845474,-500.0,0.00022548,2]
[313671069,1707565845485,-2912.52,0.00022548,2]
[313671070,1707565845496,-509.39,0.00022548,2]
[313671071,1707565845507,-317.47672982,0.00022548,2]
[313671072,1707565845518,-1542.82,0.00022548,2]
[313671073,1707565845529,-500.0,0.00022548,2]
[313671074,1707565845539,-711.18,0.00022548,2]
[313671076,1707565845549,-500.0,0.00022548,2]
[313671078,1707565845560,-500.0,0.00022548,2]
[313671080,1707565845570,-528.39,0.00022548,2]
[313671082,1707565845581,-5689.75,0.00022548,2]
[313671085,1707565845591,-500.0,0.00022548,2]
[313671087,1707565845602,-500.0,0.00022548,2]
[313671089,1707565845612,-500.0,0.00022548,2]
[313671091,1707565845622,-500.0,0.00022548,2]
[313671093,1707565845633,-500.0,0.00022548,2]
[313671095,1707565845644,-500.0,0.00022548,2]
[313671098,1707565845654,-12024.7,0.00022548,2]
[313671100,1707565845664,-500.0,0.00022548,2]
[313671102,1707565845675,-596.95,0.00022548,2]
[313671104,1707565845686,-500.0,0.00022548,2]
[313671106,1707565845696,-1849.55,0.00022548,2]
[313671108,1707565845706,-500.0,0.00022548,2]
[313671113,1707565845717,-645.59,0.00022548,2]
[313671115,1707565845727,-518.69,0.00022548,2]
[313671116,1707565845738,-616.89970256,0.00022548,2]
[313671117,1707565845749,-1763.03,0.00022548,2]
[313671118,1707565845759,-500.0,0.00022548,2]
[313671119,1707565845770,-500.0,0.00022548,2]
[313671120,1707565845780,-784.38,0.00022548,2]
[313671121,1707565845790,-826.05,0.00022548,2]
[313671122,1707565845800,-500.0,0.00022548,2]
[313671123,1707565845810,-500.0,0.00022548,2]
[313671124,1707565845819,-644.95,0.00022548,2]
[313671125,1707565845830,-608.87863817,0.00022548,2]
[313671126,1707565845840,-500.0,0.00022548,2]
[313671127,1707565845851,-208.67626869,0.00022548,2]
[313671128,1707565845861,-1975.58,0.00022548,2]
[313671129,1707565845872,-2436.97,0.00022548,2]
[313671130,1707565845882,-594.15,0.00022548,2]
[313671131,1707565845892,-500.0,0.00022548,2]
[313671132,1707565845903,-1893.89,0.00022548,2]
[313671133,1707565845914,-1969.13,0.00022548,2]
[313671134,1707565845924,-500.0,0.00022548,2]
[313671135,1707565845935,-500.0,0.00022548,5]
[313671136,1707565845945,-1114.09,0.00022548,2]
[313671137,1707565845955,-517.31,0.00022548,2]
[313671138,1707565845966,-3140.24,0.00022548,2]
[313671139,1707565845977,-500.0,0.00022548,2]
[313671140,1707565845988,-18286.5712082,0.00022549,2]
[313671141,1707565846003,-1192.9975616,0.00022549,2]
[313671142,1707565846027,-945.08,0.00022549,2]
[313671144,1707565846273,-253.52,0.00022547,2]
[313671145,1707565846289,-475.98850918,0.00022547,2]
[313671146,1707565846298,-1057.11,0.00022548,2]
[313671147,1707565846307,-7914.09487311,0.00022549,2]
[313671148,1707565846327,-544.21345849,0.00022549,2]
[313671149,1707565846810,-171117.0428986,0.00022549,2]
[313671150,1707565846820,-150.0,0.00022582,2]
[313671151,1707565846829,-24620.30144584,0.00022584,2]
[313671152,1707565846841,-500.0,0.00022584,2]
[313671153,1707565846850,-238.87080426,0.00022584,2]
[313671154,1707565846861,-500.0,0.00022584,7]
[313671155,1707565846870,-500.0,0.00022584,2]
[313671156,1707565846879,-500.0,0.00022584,2]
[313671157,1707565846888,-500.0,0.00022584,2]
[313671158,1707565846898,-500.0,0.00022584,2]
[313671159,1707565846909,-503.66,0.00022584,2]
[313671160,1707565846919,-500.0,0.00022584,2]
[313671161,1707565846928,-500.0,0.00022584,2]
[313671162,1707565846937,-500.0,0.00022584,2]
[313671163,1707565846947,-608.67704035,0.00022584,2]
[313671164,1707565846957,-500.0,0.00022584,2]
[313671165,1707565846967,-500.0,0.00022584,2]
[313671166,1707565846976,-500.0,0.00022584,2]
[313671167,1707565846986,-521.71,0.00022584,2]
[313671168,1707565846996,-500.0,0.00022584,2]
[313671169,1707565847004,-500.0,0.00022584,2]
[313671170,1707565847013,-500.0,0.00022584,2]
[313671171,1707565847023,-500.0,0.00022584,2]
[313671172,1707565847032,-500.0,0.00022584,2]
[313671173,1707565847052,-715.81,0.00022584,2]
[313671174,1707565847062,-500.0,0.00022584,2]
[313671175,1707565847072,-500.0,0.00022584,2]
[313671176,1707565847081,-500.0,0.00022584,2]
[313671177,1707565847091,-712.48,0.00022584,2]
[313671178,1707565847101,-4588.43,0.00022584,2]
[313671179,1707565847111,-500.0,0.00022584,2]
[313671180,1707565847123,-500.0,0.00022584,2]
[313671181,1707565847133,-747.62,0.00022584,2]
[313671182,1707565847144,-668.62,0.00022584,2]
[313671183,1707565847154,-590.82,0.00022584,2]
[313671184,1707565847164,-403.92868578,0.00022584,2]
[313671185,1707565847174,-1917.41,0.00022584,2]
[313671186,1707565847185,-640.86,0.00022584,2]
[313671187,1707565847196,-1096.89168233,0.00022584,2]
[313671188,1707565863887,209.0,0.00021518,2]
[313671196,1707565879020,254.11384768,0.000222,2]
[313671197,1707565899326,630.12,0.00021703,2]
[313671198,1707565899357,2500.0,0.00022448,2]
[313671199,1707565916118,364.31608377,0.000225,2]
[313671200,1707565930709,244.11,0.00019788,2]
[313671201,1707565930745,244.11,0.00022052,2]
[313671202,1707566030198,301.97,0.00021713,2]
[313671219,1707566056743,65939.6202,0.00022448,2]
[313671220,1707566111743,156.29345488,0.00022484,2]
[313671226,1707566206458,225.79,0.00021681,2]
[313671227,1707566212497,162.55208011,0.00022437,2]
[313671228,1707566287953,4519.5719,0.00022448,2]
[313671229,1707566361993,167.0847,0.00022448,2]
[313671230,1707566377455,528.306,0.00022448,2]
[313671231,1707566397922,495.9,0.00021693,2]
[313671232,1707566407931,1883.9009,0.00022447,2]
[313671237,1707566455542,5609.94056476,0.0002232,2]
[313671238,1707566487153,156.29345488,0.00022448,2]
[313671242,1707566584655,150.0,0.00022452,2]
[313671243,1707566593483,219.69,0.00019771,2]
[313671244,1707566593707,219.69,0.00022035,2]
[313671245,1707566731285,188.15,0.00021586,2]
[313671246,1707566797233,364.31608377,0.000225,2]
[313671247,1707566811063,7431.86390348,0.000225,2]
[313671248,1707566817594,2605.59929779,0.000225,2]
[313671249,1707566820134,626.03266572,0.000225,2]
[313671250,1707566822872,13573.92209149,0.000225,2]
[313671251,1707566831161,3044.36852468,0.000225,2]
[313671258,1707566850504,2121.7284,0.00022445,2]
[313671259,1707566867456,603.28,0.00021607,2]
[313671260,1707566868246,364.31608377,0.000225,2]
[313671261,1707566893572,7431.86390348,0.000225,2]
[313671265,1707566900634,203.67056085,0.000225,2]
[313671266,1707566906686,386.48141651,0.000225,2]
[313671267,1707566907529,2318.07189689,0.000225,2]
[313671268,1707566911624,3044.36852468,0.000225,2]
[313671311,1707567034284,-364.31608377,0.00022519,2]
[313671313,1707567034294,-1716.01434374,0.00022519,2]
[313671320,1707567034341,-2218.22846351,0.00022519,2]
[313671322,1707567034353,-2360.9,0.00022519,2]
[313671324,1707567034542,-1136.72109623,0.00022519,2]
[313671325,1707567034551,-736.98859078,0.0002252,2]
[313671326,1707567034563,-23725.98405955,0.0002252,2]
[313671327,1707567034572,-19545.31735987,0.00022523,2]
[313671328,1707567034581,-63448.50905108,0.00022524,2]
[313671329,1707567034591,-1491.715,0.00022531,2]
[313671331,1707567034600,-190.07272171,0.00022544,2]
[313671333,1707567034609,-241.39301355,0.00022544,2]
[313671335,1707567034619,-351.35258797,0.00022544,2]
[313671337,1707567034627,-1198.92570719,0.00022544,2]
[313671338,1707567034649,-4172.08985207,0.00022545,2]
[313671339,1707567034659,-4646.48697645,0.00022545,2]
[313671340,1707567034668,-489.67573697,0.00022545,2]
[313671341,1707567034677,-630.55738904,0.00022545,2]
[313671342,1707567034688,-363.26835941,0.00022545,2]
[313671343,1707567034698,-1046.78747652,0.00022545,2]
[313671344,1707567034708,-917.73887216,0.00022545,2]
[313671345,1707567034718,-156.45829157,0.00022545,2]
[313671346,1707567034727,-5053.00905003,0.00022545,2]
[313671347,1707567034736,-500.0,0.00022545,2]
[313671348,1707567034746,-1814.49252392,0.00022545,2]
[313671349,1707567034755,-156.79751866,0.00022545,2]
[313671350,1707567034766,-1259.57085833,0.00022545,2]
[313671351,1707567034778,-287.30832033,0.00022545,2]
[313671352,1707567034787,-250.42933287,0.00022545,2]
[313671353,1707567034797,-159.03394208,0.00022545,2]
[313671354,1707567034806,-155.57816078,0.00022545,2]
[313671355,1707567034816,-211.20606042,0.00022545,2]
[313671356,1707567034826,-282.15685369,0.00022545,2]
[313671357,1707567034836,-476.37887876,0.00022545,2]
[313671358,1707567034845,-291.12180822,0.00022545,2]
[313671359,1707567034855,-373.14406517,0.00022545,2]
[313671360,1707567034864,-292.63681022,0.00022545,2]
[313671361,1707567034874,-5466.67341342,0.00022545,2]
[313671362,1707567034883,-317.27211821,0.00022545,2]
[313671363,1707567034892,-525.21369596,0.00022545,2]
[313671364,1707567034902,-1404.85920199,0.00022545,2]
[313671365,1707567034911,-522.76817896,0.00022545,2]
[313671366,1707567034920,-366.98454961,0.00022545,2]
[313671367,1707567034929,-315.05678162,0.00022545,2]
[313671368,1707567034940,-527.91181823,0.00022545,2]
[313671369,1707567034950,-768.69623108,0.00022545,2]
[313671370,1707567034960,-163.25073479,0.00022545,2]
[313671371,1707567034969,-370.13877668,0.00022545,2]
[313671372,1707567034978,-9522.61453264,0.00022545,2]
[313671373,1707567034988,-2062.16023037,0.00022545,2]
[313671374,1707567034997,-563.27924342,0.00022546,2]
[313671375,1707567035007,-200.59320511,0.00022546,2]
[313671376,1707567035017,-4708.86041879,0.00022546,2]
[313671377,1707567035027,-419.53227465,0.00022546,2]
[313671378,1707567035036,-500.0,0.00022546,2]
[313671379,1707567035046,-500.0,0.00022546,2]
[313671380,1707567035055,-500.0,0.00022546,2]
[313671381,1707567035065,-500.0,0.00022546,2]
[313671382,1707567035074,-1706.9461786,0.00022546,2]
[313671383,1707567035088,-628.4738214,0.00022546,2]
[313671384,1707567035097,-500.0,0.00022546,5]
[313671385,1707567035107,-500.0,0.00022546,2]
[313671386,1707567035116,-4185.99,0.00022546,2]
[313671387,1707567035126,-2346.81,0.00022546,2]
[313671388,1707567035135,-150.99,0.00022546,2]
[313671389,1707567035145,-500.0,0.00022546,2]
[313671390,1707567035155,-248.10954721,0.00022546,2]
[313671391,1707567035164,-1943.02,0.00022546,2]
[313671392,1707567035174,-500.0,0.00022546,2]
[313671393,1707567035183,-2326.43,0.00022546,2]
[313671394,1707567035192,-1053.31,0.00022546,2]
[313671395,1707567035202,-12963.89723139,0.00022546,2]
[313671396,1707567035215,-2547.76276861,0.00022546,2]
[313671397,1707567035226,-569.55,0.00022546,2]
[313671398,1707567035235,-500.0,0.00022546,2]
[313671399,1707567035245,-7987.86,0.00022546,2]
[313671400,1707567035255,-500.0,0.00022546,2]
[313671401,1707567035264,-266.24142508,0.00022546,2]
[313671402,1707567035274,-500.0,0.00022546,2]
[313671403,1707567035284,-787.94,0.00022546,2]
[313671404,1707567035294,-500.0,0.00022546,2]
[313671405,1707567035304,-506.46,0.00022546,2]
[313671406,1707567035314,-500.0,0.00022546,2]
[313671407,1707567035323,-500.0,0.00022546,2]
[313671408,1707567035333,-562.79,0.00022546,2]
[313671409,1707567035342,-500.0,0.00022546,2]
[313671410,1707567035352,-500.0,0.00022546,2]
[313671411,1707567035362,-1461.38,0.00022546,2]
[313671412,1707567035372,-3105.24,0.00022546,2]
[313671413,1707567035382,-5691.34,0.00022546,2]
[313671414,1707567035392,-500.0,0.00022546,2]
[313671415,1707567035402,-568.58,0.00022546,2]
[313671416,1707567035411,-681.55,0.00022546,2]
[313671417,1707567035421,-521.93,0.00022546,2]
[313671418,1707567035432,-1408.77,0.00022546,2]
[313671419,1707567035442,-2791.16,0.00022546,2]
[313671420,1707567035452,-500.0,0.00022546,2]
[313671421,1707567035462,-1478.53,0.00022546,2]
[313671422,1707567035471,-103.87698359,0.00022546,2]
[313671423,1707567038001,-396.12301641,0.00022546,2]
[313671424,1707567038010,-500.0,0.00022546,2]
[313671425,1707567038020,-953.47,0.00022546,2]
[313671426,1707567038029,-1772.48,0.00022546,2]
[313671427,1707567038038,-500.0,0.00022546,2]
[313671428,1707567038047,-7089.30471263,0.00022546,2]
[313671429,1707567038059,-1001.77624549,0.00022546,2]
[313671430,1707567038270,-3432.58904188,0.00022546,2]
[313671431,1707567038279,-116.11678721,0.00022546,2]
[313671432,1707567038292,-730.99409544,0.00022546,2]
[313671433,1707567038304,-741.27723955,0.00022546,2]
[313671434,1707567038316,-101.1818778,0.00022546,2]
[313671435,1707567038325,-319.7069571,0.00022546,2]
[313671436,1707567038338,-298.3730429,0.00022546,2]
[313671437,1707567038348,-15.52547603,0.00022546,2]
[313671438,1707567038359,-256.46769848,0.00022546,2]
[313671439,1707567038371,-262.80682549,0.00022546,2]
[313671440,1707567038380,-251.36952381,0.00022546,2]
[313671632,1707567040664,-248.63047619,0.00022546,2]
[313671634,1707567040674,-11.05619973,0.00022546,2]
[313671640,1707567040719,-410.46085749,0.00022546,2]
[313671733,1707567041578,-147.88294278,0.00022546,2]
[313671736,1707567041588,-230.10295271,0.00022546,2]
[313671878,1707567043013,-521.59704729,0.00022546,2]
[313671880,1707567043022,-224.88646031,0.00022546,2]
[313671922,1707567044788,-500.0,0.00022545,2]
[313671923,1707567044798,-275.11353969,0.00022546,2]
[313671924,1707567044808,-1148.96964012,0.00022546,2]
[313671925,1707567044819,-331.24618229,0.00022546,2]
[313671926,1707567044842,-406.86417759,0.00022546,2]
[313671927,1707567044852,-500.0,0.00022546,2]
[313671928,1707567044862,-500.0,0.00022546,2]
[313671929,1707567044871,-2607.95,0.00022546,2]
[313671930,1707567044880,-1814.97,0.00022546,2]
[313671931,1707567044890,-500.0,0.00022546,2]
[313671932,1707567044899,-682.79,0.00022546,2]
[313671933,1707567044908,-827.8,0.00022546,2]
[313671934,1707567044917,-3009.39,0.00022546,2]
[313671935,1707567044926,-500.0,0.00022546,2]
[313671936,1707567044935,-500.0,0.00022546,2]
[313671937,1707567044944,-500.0,0.00022546,2]
[313671938,1707567044953,-500.0,0.00022546,2]
[313671939,1707567044962,-500.0,0.00022546,2]
[313671940,1707567044972,-2616.88,0.00022546,2]
[313671941,1707567044981,-500.0,0.00022546,2]
[313671942,1707567044989,-4397.24,0.00022546,2]
[313671943,1707567044998,-500.0,0.00022546,2]
[313671944,1707567045008,-427.49072815,0.00022546,2]
[313671945,1707567045016,-1422.43835318,0.00022547,2]
[313671946,1707567045025,-337.64746193,0.00022547,2]
[313671947,1707567045035,-500.0,0.00022547,7]
[313671948,1707567045044,-500.0,0.00022547,2]
[313671949,1707567045053,-500.0,0.00022547,2]
[313671950,1707567045062,-500.0,0.00022547,2]
[313671951,1707567045071,-500.0,0.00022547,2]
[313671952,1707567045080,-500.0,0.00022547,2]
[313671953,1707567045089,-560.02,0.00022547,2]
[313671954,1707567045098,-500.0,0.00022547,2]
[313671955,1707567045107,-500.0,0.00022547,2]
[313671956,1707567045116,-500.0,0.00022547,2]
[313671957,1707567045125,-500.0,0.00022547,2]
[313671958,1707567045134,-500.0,0.00022547,2]
[313671959,1707567045143,-265.19384351,0.00022547,2]
[313671960,1707567045153,-2106.94,0.00022547,2]
[313671961,1707567045162,-500.0,0.00022547,2]
[313671962,1707567045172,-500.0,0.00022547,2]
[313671963,1707567045182,-500.0,0.00022547,2]
[313671964,1707567045191,-500.0,0.00022547,2]
[313671965,1707567045201,-500.0,0.00022547,2]
[313671966,1707567045211,-161.59963974,0.00022547,2]
[313671967,1707567045219,-500.0,0.00022547,2]
[313671968,1707567045229,-500.0,0.00022547,2]
[313671969,1707567045239,-500.0,0.00022547,2]
[313671970,1707567045248,-500.0,0.00022547,2]
[313671971,1707567045258,-567.1304814,0.00022547,2]
[313671972,1707567045267,-500.0,0.00022547,2]
[313671973,1707567045277,-500.0,0.00022547,2]
[313671974,1707567045286,-500.0,0.00022547,2]
[313671975,1707567045297,-500.0,0.00022547,2]
[313671976,1707567045306,-500.0,0.00022547,2]
[313671977,1707567045316,-500.0,0.00022547,2]
[313671978,1707567045325,-500.0,0.00022547,2]
[313671979,1707567045335,-500.0,0.00022547,2]
[313671980,1707567045344,-500.0,0.00022547,2]
[313671981,1707567045354,-508.45099849,0.00022547,2]
[313671982,1707567045363,-500.0,0.00022547,2]
[313671983,1707567045373,-500.0,0.00022547,2]
[313671984,1707567045383,-500.0,0.00022547,2]
[313671985,1707567045393,-239.04230964,0.00022547,2]
[313671986,1707567045402,-500.0,0.00022547,2]
[313671987,1707567045412,-500.0,0.00022547,2]
[313671988,1707567045421,-500.0,0.00022547,2]
[313671989,1707567045432,-767.55,0.00022547,2]
[313671990,1707567045442,-150.0,0.00022547,2]
[313671991,1707567045452,-500.0,0.00022547,2]
[313671992,1707567045461,-500.0,0.00022547,2]
[313671993,1707567045470,-419.9961369,0.00022547,2]
[313671994,1707567045480,-500.0,0.00022547,2]
[313671995,1707567045489,-500.0,0.00022547,2]
[313671996,1707567045499,-500.0,0.00022547,2]
[313671997,1707567045508,-500.0,0.00022547,2]
[313671998,1707567045518,-762.16,0.00022547,2]
[313671999,1707567045526,-500.0,0.00022547,2]
[313672000,1707567045536,-500.0,0.00022547,2]
[313672001,1707567045546,-500.0,0.00022547,2]
[313672002,1707567045555,-500.0,0.00022547,2]
[313672003,1707567045565,-940.68,0.00022547,2]
[313672004,1707567045575,-564.65,0.00022547,2]
[313672005,1707567045584,-500.0,0.00022547,2]
[313672006,1707567045594,-500.0,0.00022547,2]
[313672007,1707567045603,-500.0,0.00022547,2]
[313672008,1707567045613,-500.0,0.00022547,2]
[313672009,1707567045623,-500.0,0.00022547,2]
[313672010,1707567045632,-590.31,0.00022547,2]
[313672011,1707567045642,-500.0,0.00022547,2]
[313672012,1707567045651,-53.85489409,0.00022547,2]
[313672013,1707567045671,-446.14510591,0.00022547,2]
[313672014,1707567045680,-30.06305827,0.00022547,2]
[313672015,1707567045691,-469.93694173,0.00022547,2]
[313672016,1707567045701,-500.0,0.00022547,2]
[313672017,1707567045711,-569.98,0.00022547,2]
[313672018,1707567045720,-2284.41,0.00022547,2]
[313672019,1707567045729,-500.0,0.00022547,2]
[313672020,1707567045738,-500.0,0.00022547,2]
[313672021,1707567045748,-1187.5,0.00022547,2]
[313672022,1707567045757,-500.0,0.00022547,2]
[313672023,1707567045768,-500.0,0.00022547,2]
[313672024,1707567045778,-500.0,0.00022547,2]
[313672025,1707567045787,-500.0,0.00022547,2]
[313672026,1707567045797,-500.0,0.00022547,2]
[313672027,1707567045807,-500.0,0.00022547,2]
[313672028,1707567045817,-3469.45,0.00022547,2]
[313672029,1707567045827,-685.98,0.00022547,2]
[313672030,1707567045836,-500.0,0.00022547,2]
[313672031,1707567045846,-1105.3,0.00022547,2]
[313672032,1707567045856,-500.0,0.00022547,2]
[313672033,1707567045865,-500.0,0.00022547,2]
[313672034,1707567045874,-600.72,0.00022547,2]
[313672035,1707567045884,-4933.80320119,0.00022547,2]
[313672036,1707567045900,-629.22967908,0.00022547,2]
[313672037,1707567045912,-1016.18242901,0.00022547,2]
[313672040,1707567046134,-733.25469072,0.00022547,2]
[313672041,1707567046143,-386.27861828,0.00022547,2]
[313672042,1707567046156,-113.72138172,0.00022547,2]
[313672043,1707567046165,-500.0,0.00022547,2]
[313672044,1707567046175,-275.92482576,0.00022547,2]
[313672045,1707567046237,-224.07517424,0.00022547,2]
[313672046,1707567046246,-1217.20306318,0.00022547,2]
[313672047,1707567046314,-413.88693682,0.00022547,2]
[313672048,1707567046322,-503.12,0.00022547,2]
[313672049,1707567046331,-157.60385132,0.00022547,2]
[313672050,1707567046347,-342.39614868,0.00022547,2]
[313672051,1707567046356,-404.2238831,0.00022547,2]
[313672052,1707567046366,-53.37996822,0.00022547,2]
[313672053,1707567046377,-338.98082221,0.00022547,2]
[313672054,1707567046386,-500.0,0.00022547,2]
[313672055,1707567046395,-500.0,0.00022547,2]
[313672056,1707567046404,-75.96409814,0.00022547,2]
[313672057,1707567046416,-1014.94089967,0.00022547,2]
[313672059,1707567046427,-465.67000015,0.00022547,2]
[313672060,1707567046447,-448.73500204,0.00022547,2]
[313672061,1707567046456,-1329.04,0.00022547,2]
[313672062,1707567046465,-640.76,0.00022547,2]
[313672063,1707567046474,-30.89245015,0.00022547,2]
[313672064,1707567046486,-469.10754985,0.00022547,2]
[313672065,1707567046495,-2176.46898332,0.00022547,2]
[313672066,1707567046506,-694.14833885,0.00022547,2]
[313672067,1707567053084,164.8871667,0.00022446,2]
[313672069,1707567058630,197.72,0.00019816,2]
[313672070,1707567058833,197.72,0.0002208,2]
[313672071,1707567096897,150.0,0.0002239,2]
[313672072,1707567103408,381.7475,0.00022446,2]
[313672073,1707567162945,162167.6525,0.00022446,2]
[313672074,1707567168306,2705.0,0.00021705,2]
[313672075,1707567187548,1219.40703688,0.00022247,2]
[313672076,1707567199856,200.0,0.00021707,2]
[313672077,1707567236266,211.05,0.00021707,2]
[313672078,1707567254381,353.84,0.00022,2]
[313672079,1707567262313,500.0,0.00021703,2]
[313672080,1707567265777,170.08,0.00017362,2]
[313672081,1707567273829,209.0,0.00021794,2]
[313672082,1707567275013,150.0,0.00022351,2]
[313672083,1707567275052,150.0,0.00022481,2]
[313672084,1707567275081,150.0,0.00022462,2]
[313672085,1707567275146,150.0,0.00022451,2]
[313672086,1707567275184,183.91136378,0.0002233,2]
[313672087,1707567275240,150.0,0.00022326,2]
[313672088,1707567275282,150.0,0.00022425,2]
[313672089,1707567275407,150.0,0.00022492,2]
[313672090,1707567275526,150.0,0.00022385,2]
[313672091,1707567275617,150.0,0.00022401,2]
[313672092,1707567278170,300.0,0.00022431,2]
[313672093,1707567278207,150.0,0.00022328,2]
[313672094,1707567282294,364.31608377,0.000224,2]
[313672095,1707567285114,7431.86390348,0.000225,2]
[313672096,1707567286602,155.0,0.000225,2]
[313672097,1707567287618,956.19407721,0.000224,2]
[313672098,1707567322499,517.37,0.00021608,2]
[313672099,1707567327546,488.0228,0.00022447,2]
[313672100,1707567334701,150.0,0.00022395,2]
[313672101,1707567334731,150.0,0.00022365,2]
[313672102,1707567334769,150.0,0.00022431,2]
[313672103,1707567334874,150.0,0.00022301,2]
[313672104,1707567334957,150.0,0.00022356,2]
[313672105,1707567334990,150.0,0.0002248,2]
[313672106,1707567335031,150.0,0.00022487,2]
[313672107,1707567335074,150.0,0.00022471,2]
[313672108,1707567335116,150.0,0.00022391,2]
[313672109,1707567335157,150.0,0.00022421,2]
[313672110,1707567335192,150.0,0.00022474,2]
[313672111,1707567338159,300.0,0.00022465,2]
[313672112,1707567338227,1500.0,0.00022436,2]
[313672113,1707567344328,23900.0,0.00021625,2]
[313672114,1707567352067,2000.0,0.00021625,2]
[313672115,1707567352310,166.62,0.00022267,2]
[313672116,1707567357310,364.31608377,0.000225,2]